[Event "Niedersachsen Jubilaeumsturnier Open A 2"]
[Site "Wolfsburg"]
[Date "2024.11.15"]
[Round "1.15"]
[White "Wulff, Joerg"]
[Black "Jacobi, Felix-Hagen"]
[Result "0-1"]
[ECO "C01"]
[WhiteElo "1865"]
[BlackElo "2063"]
[Annotator "RC"]
[PlyCount "154"]
[EventDate "2024.11.15"]
[EventCountry "GER"]
[SourceTitle "playchess.com"]
[Source "ChessBase"]
[SourceQuality "1"]
[TimeControl "5400+30"]

1. e4 {[%emt 0:00:06]} e6 {[%emt 0:00:17]} 2. d4 {[%emt 0:00:09]} d5 {[%emt 0:00:08]} 3. Bd3 {[%emt 0:00:02]} dxe4 {[%emt 0:04:33]} 4. Bxe4 {[%emt 0:00:02]} Nf6 {[%emt 0:00:19]} 5. Bf3 {[%emt 0:00:06]} Nbd7 {[%emt 0:00:44]} 6. Ne2 {[%emt 0:00:10]} Rb8 {[%emt 0:03:16]} 7. Be3 {[%emt 0:03:28]} b6 {[%emt 0:00:35]} 8. Qd3 {[%emt 0:03:07]} Bb7 {[%emt 0:00:48]} 9. Bxb7 {[%emt 0:05:23]} Rxb7 {[%emt 0:00:06]} 10. Nbc3 {[%emt 0:01:42]} Bd6 {[%emt 0:05:44]} 11. h3 {[%emt 0:14:15]} c6 {[%emt 0:01:02]} 12. Ne4 {[%emt 0:06:28]} Nxe4 {[%emt 0:05:07]} 13. Qxe4 {[%emt 0:00:02]} Rc7 {[%emt 0:00:18]} 14. Nc3 {[%emt 0:08:50]} Qf6 {[%emt 1:14:33]} 15. Qd3 {[%emt 0:19:04]} O-O {[%emt 0:00:00]} 16. Ne4 {[%emt 0:08:24]} Qe7 {[%emt 0:00:00]} 17. O-O {[%emt 0:01:19]} h6 {[%emt 0:00:00]} 18. c4 {[%emt 0:04:15]} Nf6 {[%emt 0:00:00]} 19. Rfd1 {[%emt 0:04:18]} Rd8 {[%emt 0:00:00]} 20. Nxf6+ {[%emt 0:03:38]} Qxf6 {[%emt 0:00:00]} 21. Qe4 {[%emt 0:00:41]} Rcd7 {[%emt 0:00:00]} 22. Rd2 {[%emt 0:16:01]} Bb4 {[%emt 0:00:00]} 23. Re2 {[%emt 0:00:00]} c5 {[%emt 0:04:30]} 24. dxc5 {[%emt 0:00:00]} Bxc5 {[%emt 0:00:00]} 25. Bxc5 {[%emt 0:00:00]} bxc5 {[%emt 0:00:00]} 26. Rae1 {[%emt 0:00:00]} Qe7 {[%emt 0:00:00]} 27. Qc2 {[%emt 0:00:00]} Rd3 {[%emt 0:00:00]} 28. Re5 {[%emt 0:00:24]} Rd2 {[%emt 0:00:00]} 29. Qb3 {[%emt 0:01:04]} Qc7 {[%emt 0:00:00]} 30. Qe3 {[%emt 0:00:52]} Rxb2 {[%emt 0:00:00]} 31. Rxc5 {[%emt 0:00:33]} Qb8 {[%emt 0:00:00]} 32. Rb5 {[%emt 0:00:48]} Rxb5 {[%emt 0:01:04]} 33. cxb5 {[%emt 0:00:04]} Qxb5 {[%emt 0:00:13]} 34. Qxa7 {[%emt 0:00:21]} Qd5 {[%emt 0:00:11]} 35. a4 {[%emt 0:00:54]} Ra8 {[%emt 0:00:19]} 36. Qc7 {[%emt 0:00:45]} Qd2 {[%emt 0:01:39]} 37. Rb1 {[%emt 0:01:01]} Rxa4 {[%emt 0:01:15]} 38. Qc8+ {[%emt 0:00:34]} Kh7 {[%emt 0:00:12]} 39. Qc1 {[%emt 0:00:27]} Ra2 {[%emt 0:01:19]} 40. Qc5 {[%emt 0:00:39]} Qc2 {[%emt 0:01:24]} 41. Qb6 {[%emt 0:00:00]} Qf5 {[%emt 0:00:00]} 42. Rf1 {[%emt 0:00:00]} e5 {[%emt 0:00:00]} 43. Qe3 {[%emt 0:00:00]} f6 {[%emt 0:00:00]} 44. Qg3 {[%emt 0:00:00]} Rd2 {[%emt 0:02:54]} 45. Qh4 {[%emt 0:00:00]} Rd4 {[%emt 0:00:00]} 46. Qg3 {[%emt 0:00:00]} Rd3 {[%emt 0:00:00]} 47. Qh4 {[%emt 0:00:00]} Qg5 {[%emt 0:00:00]} 48. Qxg5 {[%emt 0:02:06]} hxg5 {[%emt 0:00:00]} 49. Rc1 {[%emt 0:00:32]} Kg6 {[%emt 0:00:00]} 50. Kh2 {[%emt 0:00:23]} Rd7 {[%emt 0:00:00]} 51. g4 {[%emt 0:01:17]} Kf7 {[%emt 0:03:30]} 52. Rc6 {[%emt 0:00:37]} g6 {[%emt 0:00:00]} 53. Kg3 {[%emt 0:00:48]} Rd3+ {[%emt 0:00:00]} 54. Kg2 {[%emt 0:00:08]} f5 {[%emt 0:00:00]} 55. gxf5 {[%emt 0:01:35]} gxf5 {[%emt 0:00:00]} 56. Ra6 {[%emt 0:00:13]} Rd7 {[%emt 0:00:00]} 57. Rh6 {[%emt 0:00:17]} Re7 {[%emt 0:00:00]} 58. Rh5 {[%emt 0:00:34]} Kg6 {[%emt 0:00:00]} 59. Rh8 {[%emt 0:00:05]} Rf7 {[%emt 0:00:00]} 60. Rg8+ {[%emt 0:00:19]} Kf6 {[%emt 0:00:00]} 61. Ra8 {[%emt 0:00:08]} e4 {[%emt 0:00:02]} 62. Ra6+ {[%emt 0:00:34]} Ke5 {[%emt 0:00:10]} 63. Kg3 {[%emt 0:01:17]} f4+ {[%emt 0:00:16]} 64. Kg4 {[%emt 0:00:17]} Rg7 {[%emt 0:01:29]} 65. Ra5+ {[%emt 0:01:01]} Kd4 {[%emt 0:00:04]} 66. Ra4+ {[%emt 0:00:10]} Kd3 {[%emt 0:00:04]} 67. Ra3+ {[%emt 0:00:16]} Ke2 {[%emt 0:00:08]} 68. Ra2+ {[%emt 0:00:42]} Kf1 {[%emt 0:00:12]} 69. Kf5 {[%emt 0:00:20]} e3 {[%emt 0:00:14]} 70. fxe3 {[%emt 0:00:07]} fxe3 {[%emt 0:00:04]} 71. Kf6 {[%emt 0:00:48]} Rg8 {[%emt 0:00:20]} 72. Kf7 {[%emt 0:00:10]} Rh8 {[%emt 0:00:06]} 73. Ra5 {[%emt 0:01:05]} Rxh3 {[%emt 0:00:29]} 74. Rf5+ {[%emt 0:00:17]} Kg2 {[%emt 0:07:52]} 75. Rxg5+ {[%emt 0:00:12]} Kf2 {[%emt 0:00:00]} 76. Ke6 {[%emt 0:00:21]} e2 {[%emt 0:00:00]} 77. Rf5+ {[%emt 0:00:16]} Rf3 {[%emt 0:00:00]} 0-1

[Event "Niedersachsen Jubilaeumsturnier Open A 2"]
[Site "Wolfsburg"]
[Date "2024.11.15"]
[Round "1.16"]
[White "Kieselbach, Marvin"]
[Black "Beckmann, Jonathan"]
[Result "1-0"]
[ECO "A00"]
[WhiteElo "2038"]
[BlackElo "1860"]
[Annotator "RC"]
[PlyCount "83"]
[EventDate "2024.11.15"]
[EventCountry "GER"]
[SourceTitle "playchess.com"]
[Source "ChessBase"]
[SourceQuality "1"]
[TimeControl "5400+30"]

1. a3 {[%emt 0:00:02]} a6 {[%emt 0:00:37]} 2. Nf3 {[%emt 0:00:29]} Nf6 {[%emt 0:00:18]} 3. c4 {[%emt 0:01:51]} e6 {[%emt 0:01:40]} 4. e3 {[%emt 0:02:13]} d5 {[%emt 0:01:44]} 5. b4 {[%emt 0:01:13]} dxc4 {[%emt 0:02:52]} 6. Bxc4 {[%emt 0:00:17]} b5 {[%emt 0:00:30]} 7. Be2 {[%emt 0:00:12]} c5 {[%emt 0:02:34]} 8. bxc5 {[%emt 0:00:20]} Bxc5 {[%emt 0:00:20]} 9. Bb2 {[%emt 0:00:46]} O-O {[%emt 0:03:04]} 10. O-O {[%emt 0:00:14]} Bb7 {[%emt 0:00:57]} 11. Nd4 {[%emt 0:07:47]} Nbd7 {[%emt 0:05:37]} 12. Bf3 {[%emt 0:00:44]} Bxf3 {[%emt 0:04:55]} 13. Nxf3 {[%emt 0:02:06]} Nb6 {[%emt 0:02:48]} 14. Bd4 {[%emt 0:01:59]} Rc8 {[%emt 0:06:07]} 15. Bxc5 {[%emt 0:02:07]} Rxc5 {[%emt 0:00:06]} 16. d4 {[%emt 0:00:27]} Rc7 {[%emt 0:01:59]} 17. Nbd2 {[%emt 0:01:24]} Nc4 {[%emt 0:04:21]} 18. Nxc4 {[%emt 0:05:02]} bxc4 {[%emt 0:09:58]} 19. Qa4 {[%emt 0:09:21]} Qd6 {[%emt 0:01:47]} 20. Rfc1 {[%emt 0:01:22]} Rfc8 {[%emt 0:01:21]} 21. Ne5 {[%emt 0:06:32]} c3 {[%emt 0:08:07]} 22. Rc2 {[%emt 0:01:22]} Nd5 {[%emt 0:04:00]} 23. Rac1 {[%emt 0:03:54]} f6 {[%emt 0:06:00]} 24. Nd3 {[%emt 0:00:07]} e5 {[%emt 0:01:05]} 25. Qb3 {[%emt 0:14:59]} Rc4 {[%emt 0:04:45]} 26. Nc5 {[%emt 0:11:47]} Rxd4 {[%emt 0:21:41]} 27. exd4 {[%emt 0:00:06]} exd4 {[%emt 0:00:04]} 28. Nd3 {[%emt 0:05:38]} Kh8 {[%emt 0:00:06]} 29. Re2 {[%emt 0:04:45]} h5 {[%emt 0:01:27]} 30. Re4 {[%emt 0:01:22]} Ne7 {[%emt 0:00:55]} 31. Qf7 {[%emt 0:01:14]} Nf5 {[%emt 0:01:14]} 32. Qxh5+ {[%emt 0:01:04]} Nh6 {[%emt 0:00:08]} 33. Re8+ {[%emt 0:02:03]} Rxe8 {[%emt 0:00:03]} 34. Qxe8+ {[%emt 0:00:05]} Kh7 {[%emt 0:00:03]} 35. Qe4+ {[%emt 0:00:49]} f5 {[%emt 0:00:11]} 36. Qe5 {[%emt 0:00:23]} Qb6 {[%emt 0:01:05]} 37. Qc5 {[%emt 0:01:17]} Qf6 {[%emt 0:00:15]} 38. Ne5 {[%emt 0:01:31]} Ng4 {[%emt 0:00:34]} 39. Nxg4 {[%emt 0:00:47]} fxg4 {[%emt 0:00:03]} 40. Rd1 {[%emt 0:01:22]} Qf4 {[%emt 0:01:39]} 41. Qxd4 {[%emt 0:00:28]} c2 {[%emt 0:00:09]} 42. Qd3+ {[%emt 0:00:05]} 1-0

[Event "Niedersachsen Jubilaeumsturnier Open A 2"]
[Site "Wolfsburg"]
[Date "2024.11.15"]
[Round "1.17"]
[White "Gersemann, Karl"]
[Black "Stoeber, Alexander"]
[Result "1-0"]
[ECO "B27"]
[WhiteElo "1852"]
[BlackElo "2018"]
[Annotator "RC"]
[PlyCount "95"]
[EventDate "2024.11.15"]
[EventCountry "GER"]
[SourceTitle "playchess.com"]
[Source "ChessBase"]
[SourceQuality "1"]
[TimeControl "5400+30"]

1. e4 {[%emt 0:00:08]} d6 {[%emt 0:00:18]} 2. Nf3 {[%emt 0:00:56]} Nf6 {[%emt 0:00:12]} 3. Nc3 {[%emt 0:00:12]} g6 {[%emt 0:00:10]} 4. d4 {[%emt 0:01:35]} Bg7 {[%emt 0:00:19]} 5. h3 {[%emt 0:01:04]} c5 {[%emt 0:02:16]} 6. dxc5 {[%emt 0:05:35]} Qa5 {[%emt 0:00:36]} 7. Bd2 {[%emt 0:00:20]} Qxc5 {[%emt 0:01:06]} 8. Bd3 {[%emt 0:00:32]} O-O {[%emt 0:01:36]} 9. O-O {[%emt 0:00:12]} a6 {[%emt 0:02:47]} 10. a4 {[%emt 0:01:47]} Nc6 {[%emt 0:03:26]} 11. a5 {[%emt 0:04:54]} Ne5 {[%emt 0:16:56]} 12. Nxe5 {[%emt 0:00:54]} Qxe5 {[%emt 0:00:23]} 13. Be3 {[%emt 0:00:40]} Qe6 {[%emt 0:21:34]} 14. f4 {[%emt 0:05:19]} Bd7 {[%emt 0:07:43]} 15. Qe2 {[%emt 0:03:38]} Bc6 {[%emt 0:02:29]} 16. Bc4 {[%emt 0:01:25]} Qd7 {[%emt 0:08:03]} 17. Bb6 {[%emt 0:08:05]} Nh5 {[%emt 0:06:54]} 18. Qd3 {[%emt 0:14:34]} e5 {[%emt 0:10:09]} 19. fxe5 {[%emt 0:03:55]} Bxe5 {[%emt 0:00:12]} 20. Bd4 {[%emt 0:01:09]} Nf4 {[%emt 0:03:50]} 21. Qe3 {[%emt 0:01:41]} Bxd4 {[%emt 0:01:15]} 22. Qxd4 {[%emt 0:00:07]} Ne6 {[%emt 0:00:15]} 23. Qf6 {[%emt 0:01:48]} Rac8 {[%emt 0:01:22]} 24. Bd5 {[%emt 0:01:56]} Rce8 {[%emt 0:02:53]} 25. Rad1 {[%emt 0:01:50]} Qe7 {[%emt 0:01:18]} 26. Qxe7 {[%emt 0:00:09]} Rxe7 {[%emt 0:00:06]} 27. Bxc6 {[%emt 0:00:05]} bxc6 {[%emt 0:00:12]} 28. Rxd6 {[%emt 0:00:07]} Rc8 {[%emt 0:01:21]} 29. Rfd1 {[%emt 0:00:49]} Kg7 {[%emt 0:01:14]} 30. Rd7 {[%emt 0:00:43]} Rce8 {[%emt 0:00:19]} 31. Rxe7 {[%emt 0:00:52]} Rxe7 {[%emt 0:00:05]} 32. Kf2 {[%emt 0:00:59]} Ng5 {[%emt 0:00:58]} 33. Rd6 {[%emt 0:01:24]} Re5 {[%emt 0:01:39]} 34. h4 {[%emt 0:02:48]} Nxe4+ {[%emt 0:01:19]} 35. Nxe4 {[%emt 0:00:17]} Rxe4 {[%emt 0:00:02]} 36. Rxc6 {[%emt 0:36:01]} Rxh4 {[%emt 0:00:09]} 37. Rxa6 {[%emt 0:00:00]} Ra4 {[%emt 0:00:30]} 38. Kf3 {[%emt 0:00:00]} Ra2 {[%emt 0:00:04]} 39. b4 {[%emt 0:00:00]} Rxc2 {[%emt 0:00:23]} 40. b5 {[%emt 0:00:00]} h5 {[%emt 0:00:47]} 41. Rc6 {[%emt 0:00:00]} Ra2 {[%emt 0:00:45]} 42. a6 {[%emt 0:00:00]} g5 {[%emt 0:01:09]} 43. Rc7 {[%emt 0:00:00]} Kg6 {[%emt 0:00:00]} 44. a7 {[%emt 0:00:00]} g4+ {[%emt 0:00:00]} 45. Ke4 {[%emt 0:00:00]} f5+ {[%emt 0:00:00]} 46. Kd3 {[%emt 0:00:00]} h4 {[%emt 0:00:00]} 47. Rc6+ {[%emt 0:00:00]} Kg5 {[%emt 0:00:00]} 48. Ra6 {[%emt 0:00:00]} 1-0

[Event "Niedersachsen Jubilaeumsturnier Open A 2"]
[Site "Wolfsburg"]
[Date "2024.11.15"]
[Round "1.18"]
[White "Nguyen, Phuc Nhat"]
[Black "Prahl, Niklas"]
[Result "1-0"]
[ECO "B90"]
[WhiteElo "2007"]
[BlackElo "1848"]
[Annotator "RC"]
[PlyCount "103"]
[EventDate "2024.11.15"]
[EventCountry "GER"]
[SourceTitle "playchess.com"]
[Source "ChessBase"]
[SourceQuality "1"]
[TimeControl "5400+30"]

1. e4 {[%emt 0:00:03]} c5 {[%emt 0:00:05]} 2. Nf3 {[%emt 0:00:04]} d6 {[%emt 0:00:09]} 3. d4 {[%emt 0:00:04]} cxd4 {[%emt 0:00:08]} 4. Nxd4 {[%emt 0:00:05]} Nf6 {[%emt 0:00:19]} 5. Nc3 {[%emt 0:00:05]} a6 {[%emt 0:00:12]} 6. Be3 {[%emt 0:00:11]} e5 {[%emt 0:00:58]} 7. Nb3 {[%emt 0:00:06]} Be6 {[%emt 0:00:13]} 8. f3 {[%emt 0:00:44]} Be7 {[%emt 0:01:08]} 9. Qd2 {[%emt 0:00:20]} Nbd7 {[%emt 0:02:08]} 10. O-O-O {[%emt 0:00:14]} O-O {[%emt 0:00:55]} 11. g4 {[%emt 0:00:04]} b5 {[%emt 0:00:57]} 12. g5 {[%emt 0:01:17]} Nh5 {[%emt 0:00:51]} 13. Nd5 {[%emt 0:01:07]} Bxd5 {[%emt 0:01:40]} 14. exd5 {[%emt 0:00:02]} Qc7 {[%emt 0:02:21]} 15. Na5 {[%emt 0:09:32]} Rfc8 {[%emt 0:08:30]} 16. Nc6 {[%emt 0:00:10]} Bf8 {[%emt 0:00:56]} 17. Bh3 {[%emt 0:01:06]} g6 {[%emt 0:09:55]} 18. Bg4 {[%emt 0:05:36]} Ng7 {[%emt 0:01:52]} 19. h4 {[%emt 0:01:34]} Nf5 {[%emt 0:08:27]} 20. Bxf5 {[%emt 0:04:03]} gxf5 {[%emt 0:00:08]} 21. Qd3 {[%emt 0:00:05]} f4 {[%emt 0:03:20]} 22. Bf2 {[%emt 0:00:09]} Nb8 {[%emt 0:04:50]} 23. h5 {[%emt 0:19:17]} Nxc6 {[%emt 0:02:14]} 24. dxc6 {[%emt 0:00:32]} Kh8 {[%emt 0:07:11]} 25. g6 {[%emt 0:03:53]} h6 {[%emt 0:09:39]} 26. Bh4 {[%emt 0:02:18]} Qxc6 {[%emt 0:08:23]} 27. Bf6+ {[%emt 0:01:07]} Bg7 {[%emt 0:02:55]} 28. Bxg7+ {[%emt 0:00:36]} Kxg7 {[%emt 0:00:08]} 29. gxf7 {[%emt 0:00:04]} e4 {[%emt 0:04:13]} 30. fxe4 {[%emt 0:03:01]} Kxf7 {[%emt 0:06:19]} 31. Rhf1 {[%emt 0:01:41]} Qc4 {[%emt 0:03:10]} 32. Rxf4+ {[%emt 0:00:10]} Kg7 {[%emt 0:04:57]} 33. Rg1+ {[%emt 0:03:09]} Kh7 {[%emt 0:02:09]} 34. Qxc4 {[%emt 0:02:38]} Rxc4 {[%emt 0:00:07]} 35. Rf7+ {[%emt 0:00:04]} Kh8 {[%emt 0:00:07]} 36. Rf6 {[%emt 0:00:02]} Ra7 {[%emt 0:04:04]} 37. Rxh6+ {[%emt 0:02:02]} Rh7 {[%emt 0:00:04]} 38. Rgg6 {[%emt 0:00:57]} Rxe4 {[%emt 0:01:42]} 39. Rxd6 {[%emt 0:01:34]} Re5 {[%emt 0:00:54]} 40. Rd8+ {[%emt 0:00:24]} Kg7 {[%emt 0:00:12]} 41. Rg6+ {[%emt 0:00:01]} Kf7 {[%emt 0:00:29]} 42. Rd7+ {[%emt 0:00:04]} Re7 {[%emt 0:00:19]} 43. Rxe7+ {[%emt 0:00:06]} Kxe7 {[%emt 0:00:05]} 44. h6 {[%emt 0:00:26]} a5 {[%emt 0:00:35]} 45. Rg7+ {[%emt 0:00:47]} Rxg7 {[%emt 0:00:08]} 46. hxg7 {[%emt 0:00:03]} Kf7 {[%emt 0:00:12]} 47. c4 {[%emt 0:00:06]} bxc4 {[%emt 0:01:02]} 48. Kc2 {[%emt 0:00:09]} Kxg7 {[%emt 0:00:12]} 49. Kc3 {[%emt 0:00:03]} Kf6 {[%emt 0:00:40]} 50. Kxc4 {[%emt 0:00:06]} Ke6 {[%emt 0:00:05]} 51. Kb5 {[%emt 0:00:04]} Kd5 {[%emt 0:00:07]} 52. Kxa5 {[%emt 0:00:09]} 1-0

[Event "Niedersachsen Jubilaeumsturnier Open A 2"]
[Site "Wolfsburg"]
[Date "2024.11.15"]
[Round "1.19"]
[White "Hendler, Markus"]
[Black "Noack, Reiner"]
[Result "1/2-1/2"]
[ECO "C02"]
[WhiteElo "1843"]
[BlackElo "2003"]
[Annotator "RC"]
[PlyCount "110"]
[EventDate "2024.11.15"]
[EventCountry "GER"]
[SourceTitle "playchess.com"]
[Source "ChessBase"]
[SourceQuality "1"]
[TimeControl "5400+30"]

1. e4 {[%emt 0:00:04]} e6 {[%emt 0:00:09]} 2. d4 {[%emt 0:00:08]} d5 {[%emt 0:00:08]} 3. e5 {[%emt 0:00:15]} c5 {[%emt 0:00:16]} 4. c3 {[%emt 0:00:14]} Qb6 {[%emt 0:00:18]} 5. Nf3 {[%emt 0:00:19]} Nc6 {[%emt 0:00:22]} 6. Na3 {[%emt 0:00:13]} cxd4 {[%emt 0:02:18]} 7. cxd4 {[%emt 0:00:07]} Bb4+ {[%emt 0:02:04]} 8. Bd2 {[%emt 0:00:48]} Bd7 {[%emt 0:00:53]} 9. Nc2 {[%emt 0:01:42]} Bxd2+ {[%emt 0:01:29]} 10. Qxd2 {[%emt 0:00:33]} Nge7 {[%emt 0:01:18]} 11. Bd3 {[%emt 0:04:09]} Rc8 {[%emt 0:02:38]} 12. b4 {[%emt 0:08:33]} Nf5 {[%emt 0:03:22]} 13. Bxf5 {[%emt 0:04:15]} exf5 {[%emt 0:00:17]} 14. O-O {[%emt 0:01:39]} Ne7 {[%emt 0:01:13]} 15. Rfc1 {[%emt 0:09:06]} O-O {[%emt 0:01:45]} 16. Ne3 {[%emt 0:09:30]} f4 {[%emt 0:04:57]} 17. Nd1 {[%emt 0:06:29]} Qh6 {[%emt 0:03:09]} 18. Rxc8 {[%emt 0:04:04]} Rxc8 {[%emt 0:00:08]} 19. Rc1 {[%emt 0:00:07]} Rc6 {[%emt 0:10:59]} 20. Rxc6 {[%emt 0:12:26]} bxc6 {[%emt 0:00:13]} 21. Qc1 {[%emt 0:02:37]} g5 {[%emt 0:03:05]} 22. Qc5 {[%emt 0:02:38]} Nc8 {[%emt 0:00:36]} 23. Qa5 {[%emt 0:07:24]} Bf5 {[%emt 0:04:50]} 24. Qd8+ {[%emt 0:01:09]} Kg7 {[%emt 0:01:21]} 25. Qxg5+ {[%emt 0:00:10]} Qxg5 {[%emt 0:02:39]} 26. Nxg5 {[%emt 0:00:06]} Kg6 {[%emt 0:01:53]} 27. Nf3 {[%emt 0:00:59]} Bg4 {[%emt 0:00:07]} 28. Nc3 {[%emt 0:00:56]} Bxf3 {[%emt 0:00:16]} 29. gxf3 {[%emt 0:00:05]} Ne7 {[%emt 0:00:02]} 30. b5 {[%emt 0:06:22]} cxb5 {[%emt 0:00:38]} 31. Nxb5 {[%emt 0:00:38]} Nc6 {[%emt 0:00:17]} 32. Kg2 {[%emt 0:00:20]} Kf5 {[%emt 0:02:20]} 33. Kh3 {[%emt 0:01:05]} a6 {[%emt 0:02:02]} 34. Nd6+ {[%emt 0:01:31]} Ke6 {[%emt 0:01:06]} 35. Kg4 {[%emt 0:00:40]} Nxd4 {[%emt 0:03:01]} 36. Nb7 {[%emt 0:03:06]} Kxe5 {[%emt 0:00:44]} 37. Nc5 {[%emt 0:00:31]} f5+ {[%emt 0:00:43]} 38. Kh5 {[%emt 0:00:10]} Nxf3 {[%emt 0:00:22]} 39. Nxa6 {[%emt 0:00:27]} Nxh2 {[%emt 0:00:20]} 40. Nb4 {[%emt 0:00:22]} Nf3 {[%emt 0:01:28]} 41. a4 {[%emt 0:00:22]} Nd4 {[%emt 0:01:54]} 42. a5 {[%emt 0:00:47]} Ke4 {[%emt 0:00:26]} 43. a6 {[%emt 0:00:50]} Nb5 {[%emt 0:00:26]} 44. Nc6 {[%emt 0:01:11]} Kd3 {[%emt 0:01:13]} 45. Kg5 {[%emt 0:00:31]} Ke4 {[%emt 0:01:25]} 46. a7 {[%emt 0:01:56]} Nxa7 {[%emt 0:00:47]} 47. Nxa7 {[%emt 0:00:06]} h6+ {[%emt 0:00:10]} 48. Kxh6 {[%emt 0:00:10]} Kf3 {[%emt 0:00:06]} 49. Kg5 {[%emt 0:00:07]} Kxf2 {[%emt 0:00:17]} 50. Kxf4 {[%emt 0:00:07]} d4 {[%emt 0:00:13]} 51. Nb5 {[%emt 0:01:30]} d3 {[%emt 0:00:19]} 52. Nc3 {[%emt 0:02:02]} d2 {[%emt 0:00:12]} 53. Kxf5 {[%emt 0:00:24]} Ke1 {[%emt 0:00:19]} 54. Ke4 {[%emt 0:00:09]} d1=Q {[%emt 0:00:09]} 55. Nxd1 {[%emt 0:00:07]} Kxd1 {[%emt 0:44:18]} 1/2-1/2

[Event "Niedersachsen Jubilaeumsturnier Open A 2"]
[Site "Wolfsburg"]
[Date "2024.11.15"]
[Round "1.20"]
[White "Hlavchev, Ivan"]
[Black "Graf, David"]
[Result "1-0"]
[ECO "C42"]
[WhiteElo "1973"]
[BlackElo "1836"]
[Annotator "RC"]
[PlyCount "49"]
[EventDate "2024.11.15"]
[EventCountry "GER"]
[SourceTitle "playchess.com"]
[Source "ChessBase"]
[SourceQuality "1"]
[TimeControl "5400+30"]

1. e4 {[%emt 0:00:11]} e5 {[%emt 0:00:08]} 2. Nf3 {[%emt 0:00:11]} Nf6 {[%emt 0:00:12]} 3. Nxe5 {[%emt 0:00:05]} d6 {[%emt 0:00:41]} 4. Nf3 {[%emt 0:00:11]} Nxe4 {[%emt 0:00:16]} 5. Nc3 {[%emt 0:00:06]} Nxc3 {[%emt 0:00:07]} 6. dxc3 {[%emt 0:00:05]} Be7 {[%emt 0:00:19]} 7. Be3 {[%emt 0:00:53]} Nc6 {[%emt 0:00:14]} 8. Qd2 {[%emt 0:00:45]} Be6 {[%emt 0:00:19]} 9. O-O-O {[%emt 0:01:46]} Qd7 {[%emt 0:01:06]} 10. Kb1 {[%emt 0:04:07]} O-O-O {[%emt 0:00:27]} 11. Nd4 {[%emt 0:17:31]} Nxd4 {[%emt 0:26:34]} 12. Qxd4 {[%emt 0:00:35]} c5 {[%emt 0:00:20]} 13. Qxg7 {[%emt 0:00:47]} Rdg8 {[%emt 0:40:25]} 14. Qh6 {[%emt 0:01:33]} Rg6 {[%emt 0:03:20]} 15. Qf4 {[%emt 0:11:31]} d5 {[%emt 0:18:59]} 16. h3 {[%emt 0:18:13]} Rf6 {[%emt 0:02:13]} 17. Qe5 {[%emt 0:05:12]} Qd6 {[%emt 0:02:02]} 18. Bf4 {[%emt 0:03:22]} Rd8 {[%emt 0:01:14]} 19. Qxf6 {[%emt 0:02:37]} Bxf6 {[%emt 0:00:11]} 20. Bxd6 {[%emt 0:00:04]} Rxd6 {[%emt 0:00:06]} 21. g4 {[%emt 0:03:03]} Rb6 {[%emt 0:00:16]} 22. Rd3 {[%emt 0:07:54]} d4 {[%emt 0:01:01]} 23. cxd4 {[%emt 0:00:53]} Bxd4 {[%emt 0:00:29]} 24. c3 {[%emt 0:01:27]} Bd5 {[%emt 0:00:58]} 25. f3 {[%emt 0:01:08]} 1-0

[Event "Niedersachsen Jubilaeumsturnier Open A 2"]
[Site "Wolfsburg"]
[Date "2024.11.15"]
[Round "1.21"]
[White "Wibmer, Michael"]
[Black "Kieselbach, Jannik"]
[Result "0-1"]
[ECO "C52"]
[WhiteElo "1831"]
[BlackElo "1967"]
[Annotator "RC"]
[PlyCount "78"]
[EventDate "2024.11.15"]
[EventCountry "GER"]
[SourceTitle "playchess.com"]
[Source "ChessBase"]
[SourceQuality "1"]
[TimeControl "5400+30"]

1. e4 {[%emt 0:00:05]} e5 {[%emt 0:00:30]} 2. Nf3 {[%emt 0:00:04]} Nc6 {[%emt 0:00:11]} 3. Bc4 {[%emt 0:00:12]} Bc5 {[%emt 0:00:35]} 4. b4 {[%emt 0:00:33]} Bxb4 {[%emt 0:00:27]} 5. c3 {[%emt 0:00:05]} Ba5 {[%emt 0:01:01]} 6. d4 {[%emt 0:00:12]} exd4 {[%emt 0:13:11]} 7. O-O {[%emt 0:02:41]} dxc3 {[%emt 0:30:26]} 8. Qb3 {[%emt 0:05:20]} Qf6 {[%emt 0:10:15]} 9. e5 {[%emt 0:11:04]} Qg6 {[%emt 0:04:32]} 10. Nxc3 {[%emt 0:08:56]} Nge7 {[%emt 0:06:39]} 11. Ba3 {[%emt 0:06:13]} Bb6 {[%emt 0:06:37]} 12. Qd1 {[%emt 0:32:50]} O-O {[%emt 0:12:13]} 13. Nd5 {[%emt 0:05:45]} Re8 {[%emt 0:07:11]} 14. Bd3 {[%emt 0:02:53]} Qh5 {[%emt 0:01:49]} 15. Nf4 {[%emt 0:03:23]} Qg4 {[%emt 0:00:07]} 16. Bc1 {[%emt 0:04:12]} Nd4 {[%emt 0:01:51]} 17. Be4 {[%emt 0:05:50]} d6 {[%emt 0:00:49]} 18. exd6 {[%emt 0:03:15]} Nec6 {[%emt 0:00:01]} 19. Bxc6 {[%emt 0:05:12]} bxc6 {[%emt 0:00:29]} 20. Nxd4 {[%emt 0:00:59]} Qxd1 {[%emt 0:00:05]} 21. Rxd1 {[%emt 0:00:10]} Bxd4 {[%emt 0:00:08]} 22. Rb1 {[%emt 0:00:13]} cxd6 {[%emt 0:00:52]} 23. Ba3 {[%emt 0:00:51]} Bf5 {[%emt 0:00:47]} 24. Rb7 {[%emt 0:00:46]} c5 {[%emt 0:00:29]} 25. Nd5 {[%emt 0:00:33]} Be4 {[%emt 0:00:29]} 26. Ne7+ {[%emt 0:00:07]} Kf8 {[%emt 0:00:06]} 27. Rd7 {[%emt 0:00:48]} Rxe7 {[%emt 0:00:11]} 28. Rxd6 {[%emt 0:00:06]} Be5 {[%emt 0:01:42]} 29. Rd8+ {[%emt 0:00:39]} Re8 {[%emt 0:00:02]} 30. Bxc5+ {[%emt 0:00:29]} Kg8 {[%emt 0:00:02]} 31. R8d7 {[%emt 0:00:59]} a5 {[%emt 0:01:13]} 32. h3 {[%emt 0:00:25]} Bf6 {[%emt 0:00:44]} 33. Rc7 {[%emt 0:00:34]} Rac8 {[%emt 0:00:27]} 34. Bb6 {[%emt 0:00:22]} Rxc7 {[%emt 0:00:11]} 35. Bxc7 {[%emt 0:00:02]} Ra8 {[%emt 0:00:44]} 36. Re1 {[%emt 0:00:18]} Bd5 {[%emt 0:00:22]} 37. Bxa5 {[%emt 0:00:21]} Bxa2 {[%emt 0:00:08]} 38. Bb4 {[%emt 0:00:32]} Be6 {[%emt 0:00:08]} 39. Rc1 {[%emt 0:00:37]} Rd8 {[%emt 0:00:21]} 0-1